Cogmind - Beta 13 @@@ ROGUE MODE // 2024.03.21 @ 21:12:17 // Winter2019/RPGLIKE Player: H3-RMN Result: Destroyed by Y-54 Guardian with Gatling Laser Performance ------------- Evolutions (0) 0 Regions Visited (4) 800 Robots Destroyed (63) 315 Value Destroyed (1721) 1721 Prototype IDs (2) 40 Alien Tech Used (0) 0 Bonus (0) 0 TOTAL SCORE: 2876 Bonus ------- None Cogmind --------- Core Integrity 0/650 Matter 275/300 Energy 250/250 System Corruption 0% Temperature Warm (140) Movement Treading (160) Location -7/Recycling Parts ------- > --- POWER (1) -------- Ion Engine > --- PROPULSION (2) --- Improved Treads Spiked Treads > --- UTILITY (6) ------ Improved Terrain Scanner Tractor Beam > --- WEAPON (3) ------- Heavy Assault Rifle Battle Rifle Advanced Assault Cannon > --- INVENTORY (4) ---- Humpback Gun Armor Grenade Launcher Peak State ------------ > --- POWER ------------ Ion Engine > --- PROPULSION ------- Improved Treads Spiked Treads > --- UTILITY ---------- Improved Terrain Scanner Scrap Shield Tractor Beam > --- WEAPON ----------- Heavy Assault Rifle Battle Rifle Advanced Assault Cannon > --- INVENTORY -------- Humpback Gun Armor Grenade Launcher [Rating: 22] Favorites ----------- Power Ion Engine Engine Ion Engine Propulsion Improved Treads Treads Improved Treads Wheel Wheel Utility Improved Terrain Scanner Device Improved Terrain Scanner Protection Light Armor Plating Weapon Assault Rifle Energy Gun Riot Gun Energy Cannon Subdweller Beam Cannon Ballistic Gun Assault Rifle Ballistic Cannon Advanced Assault Cannon Launcher Grenade Launcher Build | -11 -10 -10 -10 -7 ------- Run | Yrd Mat Min Sub Rec Slots Evolved 8 | 3 1 . 2 2 Power . | . . . . . Propulsion 1 | . . . 1 . Utility 5 | 2 1 . . 2 Weapon 2 | 1 . . 1 . Parts Attached 39 | 6 9 3 19 2 Power 1 | 1 . . . . Engine 1 | 1 . . . . Core . | . . . . . Reactor . | . . . . . Propulsion 5 | 1 2 . 2 . Treads 4 | . 2 . 2 . Leg . | . . . . . Wheel 1 | 1 . . . . Hover . | . . . . . Flight . | . . . . . Utility 7 | 2 3 . 2 . Device 4 | 2 1 . 1 . Storage . | . . . . . Processor . | . . . . . Hackware . | . . . . . Protection 3 | . 2 . 1 . Artifact . | . . . . . Weapon 26 | 2 4 3 15 2 Energy Gun 5 | 1 2 . 2 . Energy Cannon 2 | . . . 2 . Ballistic Gun 10 | 1 1 1 6 1 Ballistic Cannon 1 | . . . . 1 Launcher 8 | . 1 2 5 . Special Weapon . | . . . . . Impact Weapon . | . . . . . Slashing Weapon . | . . . . . Piercing Weapon . | . . . . . Special Melee Weapon . | . . . . . Unidentified Prototypes . | . . . . . Parts Lost 2 | . . . 1 1 Power . | . . . . . Propulsion . | . . . . . Utility 2 | . . . 1 1 Weapon . | . . . . . Highest Loss Streak 1 | . . . 1 1 To Critical Strikes . | . . . . . Average Slot Usage (%) 95 | . 99 100 93 89 Engine 11 | . 12 12 10 9 Treads 16 | . 12 12 19 19 Device 24 | . 33 25 21 19 Protection 13 | . 12 25 11 9 Energy Gun 8 | . 5 . 11 6 Ballistic Gun 17 | . 20 23 14 19 Launcher 1 | . . 1 2 . Naked Turns . | . . . . . Heaviest Build 36 | 10 16 18 35 36 Greatest Support 46 | 10 23 23 46 43 Greatest Overweight (x) 1 | . 1 . . . Average Overweight (x) . | . . . . . Largest Inventory Capacity 4 | 2 2 2 4 4 Average Capacity 3 | 1 2 2 3 4 Most Carried 4 | 2 2 2 4 4 Average Carried 3 | 1 1 2 3 4 Final Capacity 4 | 2 2 2 4 4 Final Carried 4 | 2 2 2 4 4 Class Distribution -------------------- 42% | Skirmisher 40% | Mutant 11% | Scavenger-Skirmisher 5% | Tank Dominant Class ---------------- Mutant | -10/Materials Mutant | -10/Mines Skirmisher | -10/Subcaves Skirmisher | -7/Recycling Resources | -11 -10 -10 -10 -7 ----------- Run | Yrd Mat Min Sub Rec Matter Collected 1443 | 290 333 70 586 164 Remotely 1151 | . 333 68 586 164 Salvage Created 1629 | 102 579 31 767 150 Parts 122 | 8 49 13 48 4 Haulers Intercepted 1 | . 1 . . . Recyclers Shooed 2 | . 2 . . . Parts Field Recycled . | . . . . . Retrieved Matter . | . . . . . Parts Self-Destructed 11 | . . . 11 . Prevented . | . . . . . Kills | -11 -10 -10 -10 -7 ------- Run | Yrd Mat Min Sub Rec Combat Hostiles Destroyed 52 | . 19 6 25 2 Guns 26 | . 13 . 13 . Cannons 3 | . . . 1 2 AOE 23 | . 6 6 11 . Classes Destroyed 11 | 2 6 . 3 . Worker 1 | . 1 . . . Tunneler 2 | 2 . . . . Hauler 1 | . 1 . . . Recycler 2 | 1 . . . 1 Operator 1 | . 1 . . . Turret 2 | . . . 2 . Watcher 2 | . 2 . . . Swarmer 16 | . 3 6 7 . Grunt 17 | . 16 . 1 . Sentry 3 | . . . 1 2 Subdweller 16 | . . . 16 . Best Kill Streak 5 | 2 5 3 4 3 Combat Bots Only 5 | . 5 3 4 2 Max Kills in Single Turn 3 | 1 3 3 3 1 Gunslinging . | . . . . . Exploded 3 | . 3 3 3 . Melee . | . . . . . Uniques/NPCs Destroyed . | . . . . . Combat | -11 -10 -10 -10 -7 -------- Run | Yrd Mat Min Sub Rec Hostile Shots Fired 340 | . 75 9 136 120 Missed 108 | . 20 3 53 32 Damage Taken 2778 | . 603 82 1419 674 Core 1762 | . 439 52 884 387 Absorbed by Shields . | . . . . . Redirected to Core 1609 | . 392 52 811 354 Core Remaining (%) 100 | 100 . . . . Volleys Fired 235 | 10 70 4 135 16 Largest 3 | 2 2 1 3 3 Hottest 135 | 60 60 30 135 96 Shots Fired 403 | 19 128 4 210 42 Gun 342 | 19 126 . 171 26 Cannon 38 | . . . 22 16 Launcher 23 | . 2 4 17 . Special . | . . . . . Kinetic 222 | 10 87 . 83 42 Thermal 131 | 9 39 . 83 . Explosive 23 | . 2 4 17 . Electromagnetic 27 | . . . 27 . Robot Hit Streak 17 | 5 11 1 15 17 Robot Miss Streak 3 | 2 3 1 3 2 Penetration Max . | . . . . . Secondary Targets 1 | . 1 . . . Max Gunslinging Chain 1 | . 1 . . . Shots Hit Robots 240 | 12 89 1 109 29 Core Hits 115 | 4 44 6 51 10 Critical Kills . | . . . . . Critical Parts Destroyed 1 | . . . 1 . Critical Strikes 1 | . . . 1 . Destroy 1 | . . . 1 . Melee Attacks . | . . . . . Impact . | . . . . . Slashing . | . . . . . Piercing . | . . . . . Sneak Attacks . | . . . . . Combat Hostiles . | . . . . . Follow-up Attacks . | . . . . . Damage Inflicted 4840 | 135 1285 220 2670 530 Guns 2799 | 135 1044 . 1299 321 Cannons 374 | . . . 165 209 Explosions 1667 | . 241 220 1206 . Melee . | . . . . . Ramming . | . . . . . Kinetic 1977 | 70 718 . 659 530 Thermal 819 | 65 326 . 428 . Explosive 1667 | . 241 220 1206 . Electromagnetic 377 | . . . 377 . Impact . | . . . . . Slashing . | . . . . . Piercing . | . . . . . Highest Corruption . | . . . . . Average Corruption . | . . . . . Corruption Purged . | . . . . . Corruption Blocked . | . . . . . Overload Shots . | . . . . . Overflow Damage 13 | . . . 13 . Projectiles . | . . . . . Explosions 13 | . . . 13 . Melee . | . . . . . Knockbacks . | . . . . . Impact . | . . . . . Kinetic . | . . . . . Secondary . | . . . . . Self-Inflicted Damage 83 | . . 38 45 . Shots 5 | . . 1 4 . Rammed . | . . . . . Targets Rammed . | . . . . . Kicked . | . . . . . Crushed . | . . . . . Highest Temperature 202 | . 96 4 164 202 Average Temperature 52 | . 33 2 46 128 Received Heat Transfer 954 | . 333 . 417 204 Siege Activations . | . . . . . Robots Corrupted . | . . . . . Combat Hostiles . | . . . . . Parts Fried . | . . . . . Impact Corruptions . | . . . . . Robots Melted . | . . . . . Combat Hostiles . | . . . . . Parts Melted 3 | . 1 . 2 . Heat Transferred 1422 | 150 725 . 547 . Parts Sabotaged . | . . . . . Parts Stolen . | . . . . . Parts Stripped . | . . . . . Power Chain Reactions . | . . . . . Alert | -11 -10 -10 -10 -7 ------- Run | Yrd Mat Min Sub Rec Peak Influence 609 | 15 387 135 . 609 Initial 519 | . 9 50 . 519 Average 214 | 8 255 64 . 393 Maximum Alert Level 2 | . 1 . . 2 Low Security (%) 39 | 100 11 100 . . Level 1 51 | . 88 . . 51 Level 2 9 | . . . . 48 Level 3 . | . . . . . Level 4 . | . . . . . Level 5 . | . . . . . High Security . | . . . . . Max Security . | . . . . . Squads Dispatched 7 | . 7 . . . Investigation 5 | . 5 . . . Extermination . | . . . . . Reinforcement 2 | . 2 . . . Assault . | . . . . . Garrison . | . . . . . Intercept . | . . . . . Searches Triggered . | . . . . . Construction Impeded . | . . . . . Haulers Reinforced . | . . . . . Active Scanning Responses . | . . . . . Cargo Convoy Interrupts . | . . . . . Stealth | -11 -10 -10 -10 -7 --------- Run | Yrd Mat Min Sub Rec Distress Signals . | . . . . . Communications Jammed . | . . . . . Distress Signals . | . . . . . Times Spotted 85 | . 27 3 52 3 Peak Tracking Total 6 | . 4 3 6 3 Tactical Retreats 5 | . 1 . 4 . Traps | -11 -10 -10 -10 -7 ------- Run | Yrd Mat Min Sub Rec Traps Triggered 3 | . 2 . 1 . Indirectly . | . . . . . Trap Hack Attempts . | . . . . . Triggered . | . . . . . Disarmed 4 | . 4 . . . Reprogrammed . | . . . . . Reused . | . . . . . Traps Extracted . | . . . . . Installed . | . . . . . Triggered . | . . . . . Machines | -11 -10 -10 -10 -7 ---------- Run | Yrd Mat Min Sub Rec Machines Disabled 5 | . . 2 1 2 Max in Single Turn 1 | . . 1 1 1 Machines Repaired . | . . . . . Machines Dismantled . | . . . . . Machines Sabotaged . | . . . . . Overloaded Fab Kills . | . . . . . Hacking | -11 -10 -10 -10 -7 --------- Run | Yrd Mat Min Sub Rec Machines Accessed 20 | . 7 . 1 12 Terminals 10 | . 5 . . 5 Fabricators . | . . . . . Repair Stations . | . . . . . Recycling Units 9 | . 2 . . 7 Scanalyzers . | . . . . . Garrison Access . | . . . . . Total Hacks 72 | . 28 . 3 41 Successful 37 | . 10 . 3 24 Failed 34 | . 17 . . 17 Catastrophic 5 | . 2 . . 3 Database Lockouts 1 | . 1 . . . Manual 30 | . 19 . . 11 Terminals 47 | . 24 . . 23 Fabricators . | . . . . . Repair Stations . | . . . . . Recycling Units 22 | . 4 . . 18 Scanalyzers . | . . . . . Garrison Access . | . . . . . Terminal Hacks 15 | . 5 . 3 7 Record 3 | . . . 3 . Part Schematic 2 | . . . . 2 Robot Schematic 2 | . 1 . . 1 Robot Analysis 1 | . 1 . . . Prototype ID Bank 1 | . . . . 1 Branch Access Points 1 | . 1 . . . Alert Level 1 | . . . . 1 Unreport Threat 2 | . . . . 2 Locate Traps 1 | . 1 . . . Disarm Traps 1 | . 1 . . . Fabricator Hacks . | . . . . . Repair Station Hacks . | . . . . . Recycling Unit Hacks 11 | . 2 . . 9 Report Inventory 9 | . 2 . . 7 Retrieve Components 2 | . . . . 2 Scanalyzer . | . . . . . Garrison Access Hacks . | . . . . . Unauthorized Hacks 11 | . 3 . . 8 Terminals 2 | . 1 . . 1 Track 1 | . 1 . . . Botnet 1 | . . . . 1 Fabricators . | . . . . . Repair Stations . | . . . . . Recycling Units 9 | . 2 . . 7 Mask 1 | . . . . 1 Tunnel 8 | . 2 . . 6 Scanalyzers . | . . . . . Garrison Access . | . . . . . Data Cores Recovered . | . . . . . Used . | . . . . . Hacking Detections 11 | . 5 . . 6 Full Trace Events 4 | . 2 . . 2 Feedback Events . | . . . . . Feedback Blocked . | . . . . . Robot Schematics Acquired 2 | . 1 . . 1 Robots Built . | . . . . . Authchips . | . . . . . Time . | . . . . . Total Robot Build Rating . | . . . . . Part Schematics Acquired 2 | . . . . 2 Parts Built . | . . . . . Authchips . | . . . . . Time . | . . . . . Total Part Build Rating . | . . . . . Parts Repaired . | . . . . . Time . | . . . . . Parts Recycled . | . . . . . Recycled Matter . | . . . . . Retrieved Matter . | . . . . . Retrieved Components 6 | . . . . 6 Parts Scanalyzed . | . . . . . Part Schematics Acquired . | . . . . . Parts Damaged . | . . . . . Bothacking | -11 -10 -10 -10 -7 ------------ Run | Yrd Mat Min Sub Rec Used RIF Installer . | . . . . . Robots Hacked . | . . . . . Non-combat . | . . . . . Combat . | . . . . . Robot Hacks Applied . | . . . . . Relay Couplers Released . | . . . . . Fabnet Peak Effective % . | . . . . . Robots Rewired . | . . . . . Allies Hacked . | . . . . . Hacks Repelled . | . . . . . Allies | -11 -10 -10 -10 -7 -------- Run | Yrd Mat Min Sub Rec Total Allies . | . . . . . Largest Group . | . . . . . Highest-Rated Group . | . . . . . Highest-Rated Ally . | . . . . . Total Orders . | . . . . . Ally Attacks . | . . . . . Total Damage . | . . . . . Kills . | . . . . . Allies Corrupted . | . . . . . Allies Melted . | . . . . . Intel | -11 -10 -10 -10 -7 ------- Run | Yrd Mat Min Sub Rec Robot Analysis Total 1 | . 1 . . . Derelict Logs Recovered 3 | . . 1 2 . Drone Launches . | . . . . . Drone Recoveries . | . . . . . Exploration | -11 -10 -10 -10 -7 ------------- Run | Yrd Mat Min Sub Rec Turns Passed 7429 | 98 1610 1086 3986 649 Spaces Moved 3818 | 71 775 608 2000 364 Core 1 | 1 . . . . Treads 3716 | . 744 608 2000 364 Legs . | . . . . . Wheels 101 | 70 31 . . . Hover . | . . . . . Flight . | . . . . . Fastest Speed 50 | 50 80 160 160 160 Average Speed 157 | 79 156 160 160 160 Slowest Speed 160 | 80 160 160 160 160 Overloaded Moves . | . . . . . Propulsion Burnouts . | . . . . . Robots Hopped . | . . . . . Cave-ins Triggered . | . . . . . Exploration Rate (%) 74 | 3 99 98 97 73 Regions Visited 4 Branch Regions 3 Pre-discovered Areas 9 | . 2 . 1 6 Known Exits Taken 1 | . 1 . . . Unknown Exits Taken 3 | 1 . 1 1 . Scrap Searched 9 | . . 1 8 . Spaces Dug 23 | . . . 23 . Terrain Destroyed 158 | . 21 22 109 6 Melee . | . . . . . Projectile 13 | . . . 7 6 AOE 145 | . 21 22 102 . Terrain Rammed . | . . . . . Walls Destroyed . | . . . . . Machines Disabled . | . . . . . Actions | -11 -10 -10 -10 -7 --------- Run | Yrd Mat Min Sub Rec Total 4839 | 90 1044 716 2588 401 Wait 658 | 2 156 99 383 18 Move 3814 | 70 774 607 1999 364 Hop . | . . . . . Pick Up 9 | 2 2 . 5 . Fast Attach 18 | 6 5 . 6 1 Attach 1 | . . . 1 . Detach 1 | . . . 1 . Swap 20 | . 4 3 12 1 Drop 16 | . 5 . 10 1 Fire 235 | 10 70 4 135 16 Melee . | . . . . . Ram . | . . . . . Kick . | . . . . . Crush . | . . . . . Escape Stasis . | . . . . . Rewire . | . . . . . Trap . | . . . . . Miscellaneous 67 | . 28 3 36 . Route ------- -11/Scrapyard -10/Materials (discovered 4 exits: [*Mat x3] / *Min) -10/Mines (discovered 3 exits: [*Mat x2] / *Sub) -10/Subcaves (discovered 3 exits: [*Mat x2] / *Rec) -7/Recycling (discovered 1 exit: [*Fac]) History --------- Turn | Location | Event 2 | -11/Scrapyard | Met Revision 17 4 | -11/Scrapyard | Upgraded with Utility slot (x2) 4 | -11/Scrapyard | Upgraded with Weapon slot (x1) 19 | -11/Scrapyard | Discovered new exit (range 16) 99 | -11/Scrapyard | Entered Materials 302 | -10/Materials | Build established: Mutant 404 | -10/Materials | Reached level 2 639 | -10/Materials | Discovered new exit (range 5) 762 | -10/Materials | Discovered new exit (range 11) 892 | -10/Materials | Upgraded with Utility slot (x1) 953 | -10/Materials | Identified exit to Mines 985 | -10/Materials | Discovered new exit (range 13) 1538 | -10/Materials | Central database locked down 1709 | -10/Materials | Entered Mines 1711 | -10/Mines | Reached level 3 1738 | -10/Mines | Discovered new exit (range 9) 1760 | -10/Mines | Met a Derelict bent on vengeance 1844 | -10/Mines | Discovered new exit (range 12) 1995 | -10/Mines | Learned 2 Materials zone layouts 2495 | -10/Mines | Found a hidden stash of uninstalled traps 2639 | -10/Mines | Discovered new exit (range 8) 2795 | -10/Mines | Entered Subcaves 2797 | -10/Subcaves | Reached level 4 2994 | -10/Subcaves | Upgraded with Propulsion slot (x1) 2994 | -10/Subcaves | Upgraded with Weapon slot (x1) 3150 | -10/Subcaves | Core integrity fell below 50% 3296 | -10/Subcaves | Build established: Tank 3495 | -10/Subcaves | Shifting Twisted Machinery released Spk. Treads 3507 | -10/Subcaves | Shifting Twisted Machinery released Battle Cannon 3598 | -10/Subcaves | Visited Clippyterm 3603 | -10/Subcaves | Learned 40 Factory zone layouts 3720 | -10/Subcaves | Build established: Skirmisher 4033 | -10/Subcaves | Discovered new exit (range 6) 4135 | -10/Subcaves | Ambushed by Subdweller buried in earth 4137 | -10/Subcaves | Ambushed by Subdweller buried in earth 4237 | -10/Subcaves | Shifting Twisted Machinery released Sub. Machine Gun 4257 | -10/Subcaves | Shifting Twisted Machinery released Battle Cannon 4305 | -10/Subcaves | A swath of the cavern ceiling suddenly collapsed 4623 | -10/Subcaves | Learned location of Zion (-6) 4623 | -10/Subcaves | Met a Zionite searching for "candidates" 4672 | -10/Subcaves | Discovered new exit (range 11) 5000 | -10/Subcaves | Discovered new exit (range 16) 5283 | -10/Subcaves | Build established: Scavenger-Skirmisher 5830 | -10/Subcaves | Ambushed by Subdweller buried in earth 5962 | -10/Subcaves | A Subdweller sparked back to life 5962 | -10/Subcaves | A Subdweller sparked back to life 5962 | -10/Subcaves | A Subdweller sparked back to life 6003 | -10/Subcaves | Found Prototype Protection 6113 | -10/Subcaves | Shifting Twisted Machinery released Scrap Shield 6133 | -10/Subcaves | Build established: Skirmisher 6141 | -10/Subcaves | Shifting Twisted Machinery released Sub. Optics 6282 | -10/Subcaves | Reached level 5 6781 | -10/Subcaves | Entered Recycling 7038 | -7/Recycling | Reached level 6 7239 | -7/Recycling | Discovered new exit (range 7) 7404 | -7/Recycling | Upgraded with Utility slot (x2) 7415 | -7/Recycling | Core integrity fell below 20% 7430 | -7/Recycling | Destroyed by Y-54 Guardian with Gatling Laser Last Messages --------------- 07398_ Y-54 Guardian destroyed. 07399_ Acquired 4 matter. 07399_ Acquired 44 matter. 07402_ Acquired 12 matter. 07404_ Upgraded: Utility Slot (+2) 07404_ Upgraded: Core Integrity (+50) 07404_ Upgraded: Heat Dissipation (+18) 07404_ Y-54 Guardian destroyed. 07405_ Acquired 11 matter. 07405_ Acquired 1 matter. 07406_ Protomatter-41 decays. 07408_ Acquired 12 matter. 07419_ R-06 Scavenger collects Lgt. Treads. 07421_ Acquired 12 matter. 07422_ R-06 Scavenger collects Imp. Deuterium Engine. 07423_ R-06 Scavenger destroyed. 07424_ Acquired 6 matter. 07424_ R-06 Scavenger collects Imp. Heat Sink. 07427_ Scrap Shield destroyed. Map ----- +----------------------------------------------------+ | ?#?????# ###?##?# ? ? ???????? | | ?# ????# ##??#??# ? ? ? ???# | | ???????# #???##?? ? ??? ? ?????? | | ???????# #?##???? ? ? ?????#?? | | ? ????#+##### ? ? ??? # ????#? | | ??????? ?#????????? ????? ???????? | | ??? ? ?? ????#?????? ???? ? ?????? | | ?? ??? ? ? ????????????????????? | | ???????? ?????????????????????????? | | ? ?????"?? ????????????? ????????? | | ?+?? ????????"???????""?? ?##????? | | ???##? """ "?? ?""? ??"? ?? #???? | | #??? ?? ? ? ??? ##### | | #?#?? ? ??? ? ? ? ##??? | | #?#?? """ "?" "?"? ""?? #?##? | | ##### """ """ ""?? ??" ? ???? | | """ """ ""?? ?"? ? ####? | | ? ?? ? #??#? | | ?? ? #???? | | ? ? ? ?? % #???# | | #############??"?#?##?## ##### | | #####?#######?Y"?##?#?? r #### | | ###########"#?""#???###; % ==; | | # T ########## ;rY ==#? | | # + = #? | | + # @ ;##? | | # " " " " # #?## | | # """ """ ; ##?? | | + """ """ ##### [ ############ | | #### #??## [[####?????##? | | #??#####################?#?#??????? | | ?#???#?#???#?##?#?#?#??#####?#?##?? | | ??#?####??#####??#?##????####?####? | | ????#??#?#?#??#?#?##??#?###?#???### | | | | | | | | | | | | | | | | | | | | | | | | | | | | | | | | | +----------------------------------------------------+ Best States ------------- Heat Dissipation 43 Coolant Potential 50 Energy Generation 10 Energy Capacity 250 Matter Stores 300 Matter Capacity 300 Sight Range 16 Terrain Scan Range 16 Terrain Scan Density 110 Armor Coverage 800 Evasion (%) 44 Recoil Reduction 2 Offensive Hacking 5 Defensive Hacking 5 Item Schematics ----------------- Enh. Gauss Cannon | -7/Recycling | Hacked Matter Filter | -7/Recycling | Hacked Robot Schematics ------------------ M-13 Machinist | -10/Materials | Hacked K-01 Serf | -7/Recycling | Hacked Fabricated ------------ Nothing Alien Tech Used ----------------- None Achievements -------------- None Challenges ------------ None RPGLIKE | -11 -10 -10 -10 -7 --------- Run | Yrd Mat Min Sub Rec Levels Raised 5 | . 1 1 2 1 XP Earned 11478 | 3000 2775 1350 2073 2280 XP Spent 10485 | 3000 1100 . 3050 3335 Upgrades 19 | 8 1 . 4 6 Propulsion Slot 1 | . . . 1 . Utility Slot 5 | 2 1 . . 2 Weapon Slot 2 | 1 . . 1 . Core Integrity 1 | . . . . 1 Heat Dissipation 3 | . . . . 3 Inventory Capacity 4 | 2 . . 2 . Terrain Scan Density 1 | 1 . . . . Hack Attack % 1 | 1 . . . . Hack Defense % 1 | 1 . . . . Protomatter Created 562 | . 290 14 217 41 Integrity Restored 1237 | . 565 33 639 . Core 1111 | . 439 33 639 . Parts 126 | . 126 . . . Protomatter Decayed 86 | . 41 . 4 41 Game ------ Seed CorruptionDeepStorage Manual? 0 Play Time 00:44:32 Cumulative 629.2 hours Start 2024.03.21 @ 20:02:28 End 2024.03.21 @ 21:12:17 Sessions 1 Manual Loads 0 Difficulty Rogue Special Mode Winter2019/RPGLIKE Game No. 244 Rogue 220 Adventurer 3 Explorer 21 Win Type - Total 14 Types 9/2/1/1/0/1/0/0/0 Lore% 89 Gallery% 96 Achievement% 83 Wizard Run 0 Options --------- Layout 2 ASCII 0 Keyboard 0 Movement Numpad Keybinds 0 Fullscreen 2 Font 24/Smallcaps Map View 50x44 Zoom Use 0% Tactical HUD 1 Map Filters NONE Filters NONE Steam X RUN: 68a67c6b-e913-4d63-ae45-775f4161476b